Cogmind - Beta 12 @@@ ROGUE MODE // 2023.07.30 @ 02:17:21 Player: Sudoku Result: Destroyed by P-80 Master with Gamma Rifle Performance ------------- Evolutions (7) 3500 Regions Visited (15) 3000 Robots Destroyed (41) 205 Value Destroyed (1084) 1084 Prototype IDs (25) 500 Alien Tech Used (0) 0 Bonus (3509) 3509 TOTAL SCORE: 11798 Bonus ------- Follower Combat Kills 209 Met Data Miner 300 Hacked Protovariant 500 Scanned by Researcher 500 Acquired SGEMP 2000 Cogmind --------- Core Integrity 0/1300 Matter 277/300 Energy 100/100 System Corruption 30% Temperature Cool (0) Movement Hovering (70) Location -3/Testing Parts ------- > --- POWER (2) -------- (None) > --- PROPULSION (7) --- Improved Gyrokinetic Inverter > --- UTILITY (9) ------ Advanced Signal Interpreter Improved Terrain Scan Processor > --- WEAPON (3) ------- (None) > --- INVENTORY (5) ---- SGEMP Prototype Peak State ------------ > --- POWER ------------ Neutrino Core Neutrino Core > --- PROPULSION ------- Armored Medium Treads Armored Medium Treads Armored Huge Wheel Armored Huge Wheel Centrium Wheel > --- UTILITY ---------- Quantum Shading Machine Makeshift Trap Scanner Advanced Signal Interpreter Improved Terrain Scan Processor Stasis Canceller Advanced Transmission Jammer Cloaking Device Improved Force Field Improved Hacking Suite > --- WEAPON ----------- Heavy Rocket Launcher Power Maul Falx > --- INVENTORY -------- Micro Antimatter Reactor Improved Gyrokinetic Inverter Field Propulsion Drive Advanced Power Amplifier Compact Battery [Rating: 115] Favorites ----------- Power Ion Engine Engine Ion Engine Power Core Neutrino Core Reactor Micro Antimatter Reactor Propulsion Aluminum Leg Treads Armored Medium Treads Leg Aluminum Leg Wheel Armored Huge Wheel Hover Unit Aerolev Unit Flight Unit Xenon Bombardment Thruster Utility Large Storage Unit Device Heat Sink Storage Large Storage Unit Processor Improved Terrain Scan Processor Hackware Hacking Suite Protection Hardened Medium Armor Plating Weapon Medium Laser Energy Gun Medium Laser Energy Cannon Ion Cannon Ballistic Gun Assault Rifle Ballistic Cannon Flak Cannon Launcher Heavy Rocket Launcher Impact Weapon Powered Hammer Slashing Weapon Falx Special Melee Weapon Improved Datajack Build | -11 -10 -10 -10 -9 -8 -7 -6 -6 -6 -6 -5 -5 -4 -3 -3 ------- Run | Jun Mat Min Exi Min Mat Fac Fac Low Low Dat Pro Fac Fac Res Tes Slots Evolved 14 | . . . . . 4 2 2 . . . . 2 2 2 . Power 1 | . . . . . . . 1 . . . . . . . . Propulsion 5 | . . . . . 2 1 . . . . . . 1 1 . Utility 7 | . . . . . 2 1 1 . . . . 2 1 . . Weapon 1 | . . . . . . . . . . . . . . 1 . Parts Attached 98 | 6 2 7 . . 38 6 2 2 . . 6 6 13 4 6 Power 13 | 1 . 2 . . 4 . . 1 . . 2 . 2 . 1 Engine 5 | 1 . 2 . . . . . 1 . . 1 . . . . Core 7 | . . . . . 4 . . . . . 1 . 2 . . Reactor 1 | . . . . . . . . . . . . . . . 1 Propulsion 31 | 2 . 2 . . 15 3 . . . . 1 2 3 1 2 Treads 8 | . . . . . 4 1 . . . . . . 2 1 . Leg 6 | 2 . 2 . . 2 . . . . . . . . . . Wheel 3 | . . . . . . . . . . . . 2 1 . . Hover 5 | . . . . . 4 . . . . . . . . . 1 Flight 9 | . . . . . 5 2 . . . . 1 . . . 1 Utility 39 | 1 2 1 . . 12 3 2 1 . . 3 4 5 2 3 Device 21 | . 1 1 . . 4 2 1 . . . 2 4 4 1 1 Storage 9 | 1 1 . . . 5 . . . . . . . . . 2 Processor 5 | . . . . . 2 . . 1 . . 1 . . 1 . Hackware 3 | . . . . . . 1 1 . . . . . 1 . . Protection 1 | . . . . . 1 . . . . . . . . . . Artifact . | . . . . . . . . . . . . . . . . Weapon 15 | 2 . 2 . . 7 . . . . . . . 3 1 . Energy Gun 4 | 1 . 2 . . 1 . . . . . . . . . . Energy Cannon 2 | . . . . . 2 . . . . . . . . . . Ballistic Gun 1 | 1 . . . . . . . . . . . . . . . Ballistic Cannon 2 | . . . . . 2 . . . . . . . . . . Launcher 2 | . . . . . . . . . . . . . 2 . . Special Weapon . | . . . . . . . . . . . . . . . . Impact Weapon 2 | . . . . . 1 . . . . . . . . 1 . Slashing Weapon 1 | . . . . . . . . . . . . . 1 . . Piercing Weapon . | . . . . . . . . . . . . . . . . Special Melee Weapon 1 | . . . . . 1 . . . . . . . . . . Unidentified Prototypes 6 | . . . . . 3 . . . . . 1 . . 1 1 Parts Lost 54 | . . 1 . . 16 . . . . . 11 5 . . 21 Power 8 | . . . . . 2 . . . . . 2 1 . . 3 Propulsion 19 | . . . . . 7 . . . . . 5 1 . . 6 Utility 18 | . . . . . 3 . . . . . 3 3 . . 9 Weapon 9 | . . 1 . . 4 . . . . . 1 . . . 3 Highest Loss Streak 21 | . . 1 . . 10 . . . . . 5 2 . . 21 To Critical Strikes . | . . . . . . . . . . . . . . . . Average Slot Usage (%) 89 | . 99 99 100 100 88 99 93 98 100 100 83 50 82 86 79 Engine 7 | . 14 14 14 14 4 . . 5 6 6 5 . . . . Core 2 | . . . . . 3 7 6 6 6 6 4 . 8 9 6 Treads 4 | . . . . . 19 . . . . . . . 5 7 8 Leg 13 | . 28 28 28 28 8 . . . . . . . . . . Wheel 2 | . . . . . . . . . . . . 6 12 14 11 Flight 5 | . . . . . 2 37 33 33 33 33 23 . . . . Device 14 | . 13 13 14 14 9 21 13 7 6 6 5 12 25 23 20 Storage 8 | . 14 14 14 14 16 . . . . . . . . . 3 Processor 6 | . . . . . 1 15 13 18 20 20 17 17 15 13 9 Hackware 2 | . . . . . . 1 13 13 13 13 13 5 5 4 3 Energy Gun 11 | . 14 25 28 28 7 . . . . . . . . . . Energy Cannon 1 | . . . . . 6 . . . . . . . . . . Ballistic Gun 1 | . 14 2 . . . . . . . . . . . . . Impact Weapon 2 | . . . . . . 7 6 6 6 6 6 5 3 3 3 Naked Turns . | . . . . . . . . . . . . . . . . Heaviest Build 83 | 14 30 31 31 31 83 14 12 16 16 16 20 10 62 65 68 Greatest Support 82 | 20 20 20 20 20 82 35 22 22 22 22 22 56 72 72 72 Greatest Overweight (x) 8 | . 1 1 1 1 8 . . . . . 2 3 1 . 1 Average Overweight (x) . | . . 1 1 1 . . . . . . . . . . . Largest Inventory Capacity 20 | 8 15 15 15 15 20 5 5 5 5 5 5 5 5 5 5 Average Capacity 10 | 7 10 15 15 15 17 5 5 5 5 5 5 5 5 5 5 Most Carried 20 | 8 15 15 15 15 20 5 5 5 5 5 5 5 5 5 5 Average Carried 10 | 4 9 14 14 14 16 4 4 5 5 5 4 5 4 4 4 Final Capacity 15 | 8 15 15 15 15 5 5 5 5 5 5 5 5 5 5 5 Final Carried 15 | 8 15 15 15 15 5 5 5 5 5 5 5 5 5 5 2 Class Distribution -------------------- 45% | Scavenger-Mutant 25% | Mutant 10% | Hacker-Sprinter 8% | Infiltrator-Mutant 6% | Sprinter Dominant Class ---------------- Mutant | -10/Materials Scavenger-Mutant | -10/Mines Scavenger-Mutant | -10/Exiles Scavenger-Mutant | -9/Mines Scavenger-Mutant | -8/Materials Sprinter | -7/Factory Hacker-Sprinter | -6/Factory Hacker-Sprinter | -6/Lower Caves Hacker-Sprinter | -6/Lower Caves Hacker-Sprinter | -6/Data Miner Hacker-Sprinter | -5/Proximity Caves Mutant | -5/Factory Mutant | -4/Factory Derelict-Mutant | -3/Research Infiltrator-Mutant | -3/Testing Resources | -11 -10 -10 -10 -9 -8 -7 -6 -6 -6 -6 -5 -5 -4 -3 -3 ----------- Run | Jun Mat Min Exi Min Mat Fac Fac Low Low Dat Pro Fac Fac Res Tes Matter Collected 1634 | 264 174 84 . . 563 80 . 40 . . 73 . 12 . 344 Remotely . | . . . . . . . . . . . . . . . . Salvage Created 1235 | 11 150 211 . 82 380 88 . . . . . . 58 . 255 Parts 86 | 2 21 16 . 8 19 1 . . . . . . 4 . 15 Haulers Intercepted 2 | . . . . . 1 . . . . . . . . . 1 Recyclers Shooed 2 | . 1 . . . 1 . . . . . . . . . . Parts Field Recycled . | . . . . . . . . . . . . . . . . Retrieved Matter . | . . . . . . . . . . . . . . . . Parts Self-Destructed 6 | . . . . . . . . 4 . . 2 . . . . Prevented . | . . . . . . . . . . . . . . . . Kills | -11 -10 -10 -10 -9 -8 -7 -6 -6 -6 -6 -5 -5 -4 -3 -3 ------- Run | Jun Mat Min Exi Min Mat Fac Fac Low Low Dat Pro Fac Fac Res Tes Combat Hostiles Destroyed 29 | . 5 7 . 5 8 1 . . . . . . 2 . 1 Melee 1 | . . . . . . . . . . . . . 1 . . Guns 21 | . 5 6 . 5 5 . . . . . . . . . . Cannons 1 | . . . . . 1 . . . . . . . . . . AOE 2 | . . . . . . . . . . . . . 1 . 1 Classes Destroyed 12 | 1 4 . . . 5 . . . . . . . 1 . 1 Worker 4 | 1 . . . . 1 . . . . . . . . . 2 Hauler 2 | . . . . . 1 . . . . . . . . . 1 Recycler 1 | . . . . . 1 . . . . . . . . . . Operator 2 | . 1 . . . 1 . . . . . . . . . . Watcher 2 | . 1 . . . . 1 . . . . . . . . . Swarmer 14 | . 3 3 . 4 4 . . . . . . . . . . Grunt 8 | . 2 4 . 1 1 . . . . . . . . . . Duelist 1 | . . . . . 1 . . . . . . . . . . Researcher 1 | . . . . . . . . . . . . . . . 1 Sentry 2 | . . . . . 1 1 . . . . . . . . . Specialist 1 | . . . . . 1 . . . . . . . . . . Programmer 3 | . . . . . . . . . . . . . 2 . 1 Best Kill Streak 4 | 1 3 3 . 3 4 1 . . . . . . 1 . 2 Combat Bots Only 4 | . 3 3 . 3 4 1 . . . . . . 1 . 1 Max Kills in Single Turn 2 | 1 2 1 . 1 1 1 . . . . . . 1 . 1 Gunslinging 1 | . 1 . . . . . . . . . . . . . . Exploded 1 | . . . . . . . . . . . . . 1 . 1 Melee 1 | . . . . . . . . . . . . . 1 . . Uniques/NPCs Destroyed . | . . . . . . . . . . . . . . . . Combat | -11 -10 -10 -10 -9 -8 -7 -6 -6 -6 -6 -5 -5 -4 -3 -3 -------- Run | Jun Mat Min Exi Min Mat Fac Fac Low Low Dat Pro Fac Fac Res Tes Damage Taken 8384 | . 126 276 . 92 2562 28 . . . . 753 831 251 . 3465 Core 2242 | . 26 58 . 19 396 11 . . . . 222 184 19 . 1307 Absorbed by Shields 306 | . . . . . . . . . . . . . 133 . 173 Core Remaining (%) 76 | 100 . . . 58 28 98 . . . . 73 81 98 . . Volleys Fired 101 | 5 16 17 . 10 43 . . . . . . . 4 . 6 Largest 2 | 2 2 2 . 2 2 . . . . . . . 1 . 1 Hottest 125 | 70 70 115 . 115 125 . . . . . . . 39 . 39 Shots Fired 185 | 10 32 31 . 20 83 . . . . . . . 3 . 6 Gun 131 | 10 32 31 . 20 38 . . . . . . . . . . Cannon 45 | . . . . . 45 . . . . . . . . . . Launcher 9 | . . . . . . . . . . . . . 3 . 6 Special . | . . . . . . . . . . . . . . . . Kinetic 32 | 5 16 3 . . 8 . . . . . . . . . . Thermal 144 | 5 16 28 . 20 75 . . . . . . . . . . Explosive 9 | . . . . . . . . . . . . . 3 . 6 Electromagnetic . | . . . . . . . . . . . . . . . . Robot Hit Streak 13 | 7 13 7 . 4 10 . . . . . . . . . 2 Robot Miss Streak 5 | 1 3 3 . 3 5 . . . . . . . 3 . 2 Penetration Max . | . . . . . . . . . . . . . . . . Secondary Targets 2 | . 1 1 . . . . . . . . . . . . . Max Gunslinging Chain 1 | . 1 1 . . . . . . . . . . . . . Shots Hit Robots 131 | 8 20 19 . 12 47 9 . . . . . 2 4 . 10 Core Hits 60 | 2 9 9 . 6 21 . . . . . . . 4 . 9 Critical Kills 1 | . . 1 . . . . . . . . . . . . . Critical Parts Destroyed 4 | . 1 . . . . 3 . . . . . . . . . Critical Strikes 11 | . 1 2 . 2 2 3 . . . . . . . . 1 Burn 5 | . . 1 . 2 2 . . . . . . . . . . Destroy 2 | . 1 1 . . . . . . . . . . . . . Smash 3 | . . . . . . 3 . . . . . . . . . Sever 1 | . . . . . . . . . . . . . . . 1 Melee Attacks 77 | . . . . . . 26 1 . . . 8 8 16 1 17 Impact 48 | . . . . . . 20 1 . . . 8 8 8 1 2 Slashing 23 | . . . . . . . . . . . . . 8 . 15 Piercing . | . . . . . . . . . . . . . . . . Sneak Attacks 3 | . . . . . . . . . . . . . . . 3 Combat Hostiles . | . . . . . . . . . . . . . . . . Follow-up Attacks 1 | . . . . . . . . . . . . . . . 1 Damage Inflicted 3434 | 111 261 276 . 173 1062 140 . . . . . 84 380 . 947 Guns 1270 | 111 261 276 . 173 449 . . . . . . . . . . Cannons 613 | . . . . . 613 . . . . . . . . . . Explosions 684 | . . . . . . . . . . . . . 217 . 467 Melee 867 | . . . . . . 140 . . . . . 84 163 . 480 Ramming . | . . . . . . . . . . . . . . . . Kinetic 390 | 61 136 40 . . 153 . . . . . . . . . . Thermal 1493 | 50 125 236 . 173 909 . . . . . . . . . . Explosive 684 | . . . . . . . . . . . . . 217 . 467 Electromagnetic . | . . . . . . . . . . . . . . . . Impact 440 | . . . . . . 140 . . . . . 84 163 . 53 Slashing 427 | . . . . . . . . . . . . . . . 427 Piercing . | . . . . . . . . . . . . . . . . Highest Corruption 30 | . . . . . . . . . . . 11 1 5 . 30 Average Corruption 8 | . . . . . . . . . . . 11 1 4 . 16 Corruption Purged . | . . . . . . . . . . . . . . . . Corruption Blocked 15 | . . . . . . . . . . . . . . . 15 Effects 23 | . . . . . . . . . . . 7 . 8 . 8 Message Errors 7 | . . . . . . . . . . . 3 . 2 . 2 Matter Fused 7 | . . . . . . . . . . . 2 . 3 . 2 Heat Flow Errors 2 | . . . . . . . . . . . 1 . . . 1 Energy Discharges 1 | . . . . . . . . . . . 1 . . . . Parts Rejected 1 | . . . . . . . . . . . . . 1 . . Data Loss (minor) 1 | . . . . . . . . . . . . . 1 . . Misdirections 3 | . . . . . . . . . . . . . . . 3 Weapon Failures 1 | . . . . . . . . . . . . . 1 . . Overload Shots . | . . . . . . . . . . . . . . . . Overflow Damage 228 | . . . . . 17 106 . . . . . 5 . . 100 Projectiles 17 | . . . . . 17 . . . . . . . . . . Explosions 25 | . . . . . . . . . . . . . . . 25 Melee 186 | . . . . . . 106 . . . . . 5 . . 75 Knockbacks 3 | . . . . . . . . . . . . 1 2 . . Impact 3 | . . . . . . . . . . . . 1 2 . . Kinetic . | . . . . . . . . . . . . . . . . Secondary . | . . . . . . . . . . . . . . . . Self-Inflicted Damage 131 | . . . . . . . . . . . . . 65 . 66 Shots 5 | . . . . . . . . . . . . . 2 . 3 Rammed 2 | . . . . . . . . . . . . . . . 2 Targets Rammed 2 | . . . . . . . . . . . . . . . 2 Kicked . | . . . . . . . . . . . . . . . . Crushed . | . . . . . . . . . . . . . . . . Highest Temperature 274 | 36 90 274 . 144 250 . . 2 2 2 178 . . . 215 Average Temperature 46 | 16 28 104 . 58 77 . . 2 2 2 30 . . . 123 Received Heat Transfer 843 | . 36 126 . . 441 6 . . . . 87 99 . . 48 Siege Activations . | . . . . . . . . . . . . . . . . Robots Corrupted . | . . . . . . . . . . . . . . . . Combat Hostiles . | . . . . . . . . . . . . . . . . Parts Fried 3 | . . . . . . 3 . . . . . . . . . Impact Corruptions 5 | . . . . . . 4 . . . . . 1 . . . Robots Melted 3 | . . 1 . . 2 . . . . . . . . . . Combat Hostiles 3 | . . 1 . . 2 . . . . . . . . . . Parts Melted 9 | . . . . 1 8 . . . . . . . . . . Heat Transferred 3626 | 148 370 703 . 629 1776 . . . . . . . . . . Parts Sabotaged . | . . . . . . . . . . . . . . . . Parts Stolen . | . . . . . . . . . . . . . . . . Parts Stripped . | . . . . . . . . . . . . . . . . Power Chain Reactions . | . . . . . . . . . . . . . . . . Missiles Intercepted . | . . . . . . . . . . . . . . . . Alert | -11 -10 -10 -10 -9 -8 -7 -6 -6 -6 -6 -5 -5 -4 -3 -3 ------- Run | Jun Mat Min Exi Min Mat Fac Fac Low Low Dat Pro Fac Fac Res Tes Peak Influence 230 | 5 125 207 . 131 196 146 101 . . . . 180 191 29 230 Initial 141 | . 3 2 . . . 35 71 . . . . 141 9 6 15 Average 61 | . 54 48 . 56 40 72 76 . . . . 110 81 23 97 Maximum Alert Level 1 | . . 1 . . . . . . . . . . . . 1 Low Security (%) 98 | 100 100 94 . 100 100 100 100 . . . . 100 100 100 89 Level 1 1 | . . 5 . . . . . . . . . . . . 10 Level 2 . | . . . . . . . . . . . . . . . . Level 3 . | . . . . . . . . . . . . . . . . Level 4 . | . . . . . . . . . . . . . . . . Level 5 . | . . . . . . . . . . . . . . . . High Security . | . . . . . . . . . . . . . . . . Max Security . | . . . . . . . . . . . . . . . . Squads Dispatched 12 | . . . . . 2 1 . . . . 1 1 1 . 6 Investigation 1 | . . . . . . . . . . . . . 1 . . Extermination 3 | . . . . . . 1 . . . . . 1 . . 1 Reinforcement 6 | . . . . . 2 . . . . . . . . . 4 Assault 2 | . . . . . . . . . . . 1 . . . 1 Garrison . | . . . . . . . . . . . . . . . . Intercept . | . . . . . . . . . . . . . . . . Searches Triggered . | . . . . . . . . . . . . . . . . Data Miner Redirects 2 | . . . . . . . . . . . . . 1 . 1 Construction Impeded . | . . . . . . . . . . . . . . . . Haulers Reinforced . | . . . . . . . . . . . . . . . . Active Scanning Responses . | . . . . . . . . . . . . . . . . Cargo Convoy Interrupts . | . . . . . . . . . . . . . . . . Stealth | -11 -10 -10 -10 -9 -8 -7 -6 -6 -6 -6 -5 -5 -4 -3 -3 --------- Run | Jun Mat Min Exi Min Mat Fac Fac Low Low Dat Pro Fac Fac Res Tes Distress Signals 5 | . . . . . 5 . . . . . . . . . . Communications Jammed 6 | . . . . . . . . . . . . . . . 6 Distress Signals 4 | . . . . . . . . . . . . . . . 4 Times Spotted 118 | . 9 7 . 8 32 3 1 . . . 25 8 2 . 23 Peak Tracking Total 14 | . 3 3 . 3 7 2 1 . . . 14 5 2 . 13 Tactical Retreats 13 | . . . . . 2 . . . . . 6 3 . . 2 Traps | -11 -10 -10 -10 -9 -8 -7 -6 -6 -6 -6 -5 -5 -4 -3 -3 ------- Run | Jun Mat Min Exi Min Mat Fac Fac Low Low Dat Pro Fac Fac Res Tes Traps Triggered . | . . . . . . . . . . . . . . . . Indirectly . | . . . . . . . . . . . . . . . . Trap Hack Attempts . | . . . . . . . . . . . . . . . . Triggered . | . . . . . . . . . . . . . . . . Disarmed . | . . . . . . . . . . . . . . . . Reprogrammed . | . . . . . . . . . . . . . . . . Reused . | . . . . . . . . . . . . . . . . Traps Extracted . | . . . . . . . . . . . . . . . . Installed . | . . . . . . . . . . . . . . . . Triggered . | . . . . . . . . . . . . . . . . Exploded 1 | . . . . . 1 . . . . . . . . . . Machines | -11 -10 -10 -10 -9 -8 -7 -6 -6 -6 -6 -5 -5 -4 -3 -3 ---------- Run | Jun Mat Min Exi Min Mat Fac Fac Low Low Dat Pro Fac Fac Res Tes Machines Disabled 5 | . . 2 . . . . . . . . . . 2 . 1 Max in Single Turn 1 | . . 1 . . . . . . . . . . 1 . 1 Machines Repaired . | . . . . . . . . . . . . . . . . Machines Sabotaged . | . . . . . . . . . . . . . . . . Overloaded Fab Kills . | . . . . . . . . . . . . . . . . Hacking | -11 -10 -10 -10 -9 -8 -7 -6 -6 -6 -6 -5 -5 -4 -3 -3 --------- Run | Jun Mat Min Exi Min Mat Fac Fac Low Low Dat Pro Fac Fac Res Tes Machines Accessed 36 | . 5 . . . 5 9 1 1 1 4 . 4 3 1 2 Terminals 19 | . 5 . . . 4 5 . . . . . 3 1 . 1 Fabricators 3 | . . . . . . . 1 . . . . . 1 1 . Repair Stations 2 | . . . . . 1 . . . . . . . . . 1 Recycling Units 1 | . . . . . . 1 . . . . . . . . . Scanalyzers 5 | . . . . . . 3 . . . . . 1 1 . . Garrison Access . | . . . . . . . . . . . . . . . . Total Hacks 119 | . 19 . . . 13 29 3 1 1 33 . 9 7 1 3 Successful 75 | . 10 . . . 6 14 1 1 1 33 . 2 4 1 2 Failed 44 | . 9 . . . 7 15 2 . . . . 7 3 . 1 Catastrophic 9 | . 3 . . . . 3 . . . . . 2 1 . . Database Lockouts . | . . . . . . . . . . . . . . . . Manual 49 | . 14 . . . 8 13 1 . . . . 7 3 1 2 Terminals 52 | . 19 . . . 10 11 . . . . . 8 2 . 2 Fabricators 8 | . . . . . . . 3 . . . . . 4 1 . Repair Stations 4 | . . . . . 3 . . . . . . . . . 1 Recycling Units 4 | . . . . . . 4 . . . . . . . . . Scanalyzers 16 | . . . . . . 14 . . . . . 1 1 . . Garrison Access . | . . . . . . . . . . . . . . . . Terminal Hacks 46 | . 6 . . . 3 . . 1 1 33 . 1 . . 1 Record 11 | . . . . . . . . . . 11 . . . . . Part Schematic 12 | . . . . . . . . . . 12 . . . . . Robot Schematic 7 | . . . . . . . . . . 7 . . . . . Prototype ID Bank 4 | . 1 . . . . . . . . 3 . . . . . Open Door 2 | . . . . . . . . 1 1 . . . . . . Emergency Access Points 1 | . . . . . 1 . . . . . . . . . . Terminal Index 1 | . . . . . 1 . . . . . . . . . . Repair Station Index 1 | . . . . . . . . . . . . 1 . . . Unreport Threat 2 | . 2 . . . . . . . . . . . . . . Locate Traps 2 | . 1 . . . 1 . . . . . . . . . . Zone Layout 2 | . 2 . . . . . . . . . . . . . . Protovariant Controls 1 | . . . . . . . . . . . . . . . 1 Fabricator Hacks 2 | . . . . . . . . . . . . . 2 . . Load Schematic 1 | . . . . . . . . . . . . . 1 . . Build 1 | . . . . . . . . . . . . . 1 . . Repair Station Hacks . | . . . . . . . . . . . . . . . . Recycling Unit Hacks 2 | . . . . . . 2 . . . . . . . . . Retrieve Matter 1 | . . . . . . 1 . . . . . . . . . Retrieve Components 1 | . . . . . . 1 . . . . . . . . . Scanalyzer 9 | . . . . . . 9 . . . . . . . . . Insert Component 4 | . . . . . . 4 . . . . . . . . . Analyze 5 | . . . . . . 5 . . . . . . . . . Garrison Access Hacks . | . . . . . . . . . . . . . . . . Unauthorized Hacks 16 | . 4 . . . 3 3 1 . . . . 1 2 1 1 Terminals 11 | . 4 . . . 2 2 . . . . . 1 1 . 1 Track 8 | . 3 . . . 2 . . . . . . 1 1 . 1 Botnet 3 | . 1 . . . . 2 . . . . . . . . . Fabricators 3 | . . . . . . . 1 . . . . . 1 1 . Haulers 3 | . . . . . . . 1 . . . . . 1 1 . Repair Stations 1 | . . . . . 1 . . . . . . . . . . Mechanics 1 | . . . . . 1 . . . . . . . . . . Recycling Units 1 | . . . . . . 1 . . . . . . . . . Recyclers 1 | . . . . . . 1 . . . . . . . . . Scanalyzers . | . . . . . . . . . . . . . . . . Garrison Access . | . . . . . . . . . . . . . . . . Data Cores Recovered 2 | . 1 . . . 1 . . . . . . . . . . Used 2 | . 1 . . . 1 . . . . . . . . . . Hacking Detections 29 | . 5 . . . 5 8 1 . . . . 4 3 1 2 Full Trace Events 2 | . 1 . . . . . . . . . . . 1 . . Feedback Events . | . . . . . . . . . . . . . . . . Feedback Blocked . | . . . . . . . . . . . . . . . . Robot Schematics Acquired 8 | . . . . . . . . . . 7 . . . . 1 Robots Built . | . . . . . . . . . . . . . . . . Authchips . | . . . . . . . . . . . . . . . . Time . | . . . . . . . . . . . . . . . . Total Robot Build Rating . | . . . . . . . . . . . . . . . . Part Schematics Acquired 23 | . . . . . . 4 . . . 12 . . . . 7 Parts Built 2 | . . . . . . . . . . . . . 2 . . Authchips . | . . . . . . . . . . . . . . . . Time 117 | . . . . . . . . . . . . . 117 . . Total Part Build Rating 14 | . . . . . . . . . . . . . 14 . . Parts Repaired . | . . . . . . . . . . . . . . . . Time . | . . . . . . . . . . . . . . . . Parts Recycled . | . . . . . . . . . . . . . . . . Recycled Matter . | . . . . . . . . . . . . . . . . Retrieved Matter . | . . . . . . . . . . . . . . . . Retrieved Components 3 | . . . . . . 3 . . . . . . . . . Parts Scanalyzed 4 | . . . . . . 4 . . . . . . . . . Part Schematics Acquired 4 | . . . . . . 4 . . . . . . . . . Parts Damaged . | . . . . . . . . . . . . . . . . Bothacking | -11 -10 -10 -10 -9 -8 -7 -6 -6 -6 -6 -5 -5 -4 -3 -3 ------------ Run | Jun Mat Min Exi Min Mat Fac Fac Low Low Dat Pro Fac Fac Res Tes Used RIF Installer . | . . . . . . . . . . . . . . . . Robots Hacked . | . . . . . . . . . . . . . . . . Non-combat . | . . . . . . . . . . . . . . . . Combat . | . . . . . . . . . . . . . . . . Robot Hacks Applied . | . . . . . . . . . . . . . . . . Relay Couplers Released . | . . . . . . . . . . . . . . . . Fabnet Peak Effective % . | . . . . . . . . . . . . . . . . Robots Rewired . | . . . . . . . . . . . . . . . . Allies Hacked . | . . . . . . . . . . . . . . . . Hacks Repelled . | . . . . . . . . . . . . . . . . Allies | -11 -10 -10 -10 -9 -8 -7 -6 -6 -6 -6 -5 -5 -4 -3 -3 -------- Run | Jun Mat Min Exi Min Mat Fac Fac Low Low Dat Pro Fac Fac Res Tes Total Allies 4 | . . 3 . . . . . . . . 1 . . . . Largest Group 3 | . . 3 3 3 3 . . . . . 1 . . . . Highest-Rated Group 96 | . . 40 40 40 40 . . . . . 96 . . . . Highest-Rated Ally 96 | . . 16 16 16 16 . . . . . 96 . . . . Total Orders . | . . . . . . . . . . . . . . . . Ally Attacks 67 | . . . . 10 50 . . . . . 7 . . . . Total Damage 806 | . . . . 129 538 . . . . . 139 . . . . Kills 9 | . . . . 2 6 . . . . . 1 . . . . Allies Corrupted . | . . . . . . . . . . . . . . . . Allies Melted 1 | . . . . . . . . . . . 1 . . . . Intel | -11 -10 -10 -10 -9 -8 -7 -6 -6 -6 -6 -5 -5 -4 -3 -3 ------- Run | Jun Mat Min Exi Min Mat Fac Fac Low Low Dat Pro Fac Fac Res Tes Robot Analysis Total . | . . . . . . . . . . . . . . . . Derelict Logs Recovered 7 | . . 2 . 2 . . . 1 . . 2 . . . . Drone Launches . | . . . . . . . . . . . . . . . . Drone Recoveries . | . . . . . . . . . . . . . . . . Exploration | -11 -10 -10 -10 -9 -8 -7 -6 -6 -6 -6 -5 -5 -4 -3 -3 ------------- Run | Jun Mat Min Exi Min Mat Fac Fac Low Low Dat Pro Fac Fac Res Tes Turns Passed 6347 | 136 346 800 447 979 1021 331 33 262 82 28 311 514 563 135 359 Spaces Moved 6286 | 87 204 350 235 496 565 863 92 889 273 95 780 466 480 128 283 Core 181 | 5 . . . . . . . . . . . 169 . . 7 Treads 269 | . . . . . 266 . . . . . . . 1 . 2 Legs 1439 | 82 204 350 235 496 72 . . . . . . . . . . Wheels 1146 | . . . . . . . . . . . . 266 479 128 273 Hover 60 | . . . . . 59 . . . . . . . . . 1 Flight 3191 | . . . . . 168 863 92 889 273 95 780 31 . . . Fastest Speed 27 | 50 120 190 190 190 29 27 29 29 29 29 29 50 96 96 50 Average Speed 87 | 115 136 190 190 190 141 29 29 29 29 29 35 101 101 96 98 Slowest Speed 600 | 120 190 190 190 190 600 49 29 29 29 29 165 200 170 96 250 Overloaded Moves 41 | . . . . . . . . . . . 10 31 . . . Propulsion Burnouts . | . . . . . . . . . . . . . . . . Robots Hopped 2 | . . . . . . . . . 1 . 1 . . . . Cave-ins Triggered 1 | . . . . . . . . . . . 1 . . . . Exploration Rate (%) 42 | 6 36 54 63 91 46 37 5 73 51 73 91 8 13 5 33 Regions Visited 15 Branch Regions 8 Pre-discovered Areas 3 | . . 1 . . . . . . . 1 1 . . . . Known Exits Taken 10 | . . . . . 1 1 1 1 1 1 1 1 1 1 . Unknown Exits Taken 5 | 1 1 1 1 1 . . . . . . . . . . . Scrap Searched 9 | . . . . 1 . . . 4 1 . 3 . . . . Spaces Dug 46 | . . . . . . 14 . . . . 8 2 10 1 11 Terrain Destroyed 164 | . . . . . 5 14 . . . . 8 2 58 1 76 Melee 39 | . . . . . . 14 . . . . 8 2 10 1 4 Projectile 5 | . . . . . 5 . . . . . . . . . . AOE 120 | . . . . . . . . . . . . . 48 . 72 Terrain Rammed . | . . . . . . . . . . . . . . . . Walls Destroyed . | . . . . . . . . . . . . . . . . Machines Disabled . | . . . . . . . . . . . . . . . . Actions | -11 -10 -10 -10 -9 -8 -7 -6 -6 -6 -6 -5 -5 -4 -3 -3 --------- Run | Jun Mat Min Exi Min Mat Fac Fac Low Low Dat Pro Fac Fac Res Tes Total 6801 | 112 242 457 236 515 709 906 96 891 275 94 796 488 521 138 325 Wait 108 | 1 7 72 . 4 15 . . . . . . 9 . . . Move 6266 | 86 203 349 234 495 564 862 91 888 270 94 776 465 479 127 283 Hop 2 | . . . . . . . . . 1 . 1 . . . . Pick Up 74 | 14 10 3 1 3 24 5 1 . 2 . 2 . 5 3 1 Fast Attach 43 | . 1 3 . . 14 3 . 2 . . 3 6 8 2 1 Attach 41 | 6 . . . . 18 2 1 . . . 3 . 4 2 5 Detach 1 | . . . . . . . . . . . 1 . . . . Swap 14 | . 1 4 . . 6 1 1 . . . . . 1 . . Drop 62 | . 4 9 1 3 25 7 1 1 2 . 1 . 4 3 1 Fire 101 | 5 16 17 . 10 43 . . . . . . . 4 . 6 Melee 75 | . . . . . . 26 1 . . . 8 8 16 1 15 Ram 3 | . . . . . . . . . . . . . . . 3 Kick . | . . . . . . . . . . . . . . . . Crush . | . . . . . . . . . . . . . . . . Escape Stasis 11 | . . . . . . . . . . . 1 . . . 10 Rewire . | . . . . . . . . . . . . . . . . Trap . | . . . . . . . . . . . . . . . . Miscellaneous . | . . . . . . . . . . . . . . . . Route ------- -11/Junkyard -10/Materials -10/Mines (discovered 2 exits: [*Mat] / [*Exi]) -10/Exiles -9/Mines (discovered 2 exits: *Mat x2) -8/Materials -7/Factory -6/Factory -6/Lower Caves -6/Lower Caves -6/Data Miner -5/Proximity Caves -5/Factory -4/Factory (discovered 2 exits: *Res / *Ext) -3/Research -3/Testing History --------- Turn | Location | Event 4 | -11/Junkyard | Discovered new exit (range 16) 137 | -11/Junkyard | Entered Materials 304 | -10/Materials | Build established: Mutant 321 | -10/Materials | Discovered new exit (range 16) 483 | -10/Materials | Entered Mines 510 | -10/Mines | Met a Derelict bent on vengeance 880 | -10/Mines | Assisted by bots powering up and referring to "LRC-V3" 884 | -10/Mines | Learned location of Storage (-9) 904 | -10/Mines | Build established: Scavenger-Mutant 959 | -10/Mines | Discovered new exit (range 5) 1247 | -10/Mines | A weapon hastily lodged in a ceiling crevice suddenly fell to the ground 1275 | -10/Mines | Deemed a non-threat by the Exiles lab entrance 1275 | -10/Mines | Discovered new exit (range 5) 1283 | -10/Mines | Entered Exiles 1283 | -10/Exiles | Found Exiles lab abandoned 1283 | -10/Exiles | Accompanied by 3 allies 1712 | -10/Exiles | Discovered new exit (range 10) 1730 | -10/Exiles | Entered Mines 1730 | -9/Mines | Accompanied by 3 allies 1791 | -9/Mines | Learned Materials garrison access intel 2360 | -9/Mines | Discovered new exit (range 6) 2431 | -9/Mines | Discovered new exit (range 9) 2452 | -9/Mines | Learned Materials stockpile data 2709 | -9/Mines | Entered Materials 2709 | -8/Materials | Accompanied by 3 allies 2709 | -8/Materials | Evolved 4 slots: Propulsion x2, Utility x2 2711 | -8/Materials | Loaded intel: 1 garrison access location 3572 | -8/Materials | Lost 10 parts (2p3n2u3w) 3647 | -8/Materials | Core integrity fell below 50% 3671 | -8/Materials | Lost 4 parts (3n1u) 3729 | -8/Materials | Discovered new exit (range 3) 3730 | -8/Materials | Identified exit to Factory 3730 | -8/Materials | Entered Factory 3730 | -7/Factory | Evolved 2 slots: Propulsion x1, Utility x1 3959 | -7/Factory | Build established: Sprinter 4057 | -7/Factory | Discovered new exit (range 16) 4061 | -7/Factory | Identified exit to Factory 4061 | -7/Factory | Entered another Factory area 4061 | -6/Factory | Evolved 2 slots: Power x1, Utility x1 4090 | -6/Factory | Discovered new exit (range 10) 4094 | -6/Factory | Identified exit to Lower Caves 4094 | -6/Factory | Entered Lower Caves 4139 | -6/Lower Caves | Encountered a Warlord checkpoint 4283 | -6/Lower Caves | Spotted B-75 Beast 4350 | -6/Lower Caves | Build established: Hacker-Sprinter 4352 | -6/Lower Caves | Discovered new exit (range 8) 4354 | -6/Lower Caves | Identified exit to Lower Caves 4355 | -6/Lower Caves | Learned Factory stockpile data 4356 | -6/Lower Caves | Entered another Lower Caves area 4434 | -6/Lower Caves | Encountered a Warlord checkpoint 4437 | -6/Lower Caves | Discovered new exit (range 5) 4438 | -6/Lower Caves | Identified exit to Data Miner 4438 | -6/Lower Caves | Entered Data Miner 4438 | -6/Data Miner | Discovered new exit (range 6) 4441 | -6/Data Miner | Identified exit to Proximity Caves 4445 | -6/Data Miner | Met Data Miner 4452 | -6/Data Miner | Learned location of Section 7 (-2) 4452 | -6/Data Miner | Acquired the access code to Warlord's prototype stash 4457 | -6/Data Miner | Received God Mode back door access code from Data Miner 4466 | -6/Data Miner | Entered Proximity Caves 4523 | -5/Proximity Caves | Learned 4 Factory zone layouts 4563 | -5/Proximity Caves | Escorted by Enhanced Grunt 4602 | -5/Proximity Caves | Crushed by falling debris 4603 | -5/Proximity Caves | System corruption reached 10% 4613 | -5/Proximity Caves | Attracted the attention of an 0b10 checkpoint 4643 | -5/Proximity Caves | Lost 5 parts (3n2u) 4676 | -5/Proximity Caves | Attracted the attention of an 0b10 outpost 4749 | -5/Proximity Caves | Learned location of Armory (-4) 4769 | -5/Proximity Caves | Lost 3 parts (2p1n) 4770 | -5/Proximity Caves | Discovered new exit (range 8) 4776 | -5/Proximity Caves | Identified exit to Factory 4777 | -5/Proximity Caves | Entered Factory 4777 | -5/Factory | Evolved 2 slots: Utility x2 5110 | -5/Factory | Build established: Mutant 5280 | -5/Factory | Discovered new exit (range 12) 5290 | -5/Factory | Identified exit to Factory 5291 | -5/Factory | Entered another Factory area 5291 | -4/Factory | Evolved 2 slots: Propulsion x1, Utility x1 5559 | -4/Factory | Discovered new exit (range 14) 5573 | -4/Factory | Identified exit to Extension 5667 | -4/Factory | Incoming investigation squad redirected 5761 | -4/Factory | Fabricated Impulse Thruster? 5848 | -4/Factory | Discovered new exit (range 5) 5853 | -4/Factory | Identified exit to Research 5854 | -4/Factory | Entered Research 5854 | -3/Research | Evolved 2 slots: Propulsion x1, Weapon x1 5968 | -3/Research | Discovered new exit (range 15) 5981 | -3/Research | Identified exit to Testing 5989 | -3/Research | Entered Testing 6065 | -3/Testing | Scanned by Researcher 6134 | -3/Testing | Protovariant out of control (PH-STMFMU3G94) 6134 | -3/Testing | Unleashed a protovariant (PH-STMFMU3G94) 6162 | -3/Testing | Incoming assault squad redirected 6251 | -3/Testing | Spotted PH-STMFMU3G94 6262 | -3/Testing | System corruption reached 10% 6294 | -3/Testing | Spotted Striker 6318 | -3/Testing | Spotted Striker 6325 | -3/Testing | Spotted Alpha 7 6330 | -3/Testing | Core integrity fell below 50% 6333 | -3/Testing | Stole the SGEMP Prototype 6341 | -3/Testing | Core integrity fell below 20% 6347 | -3/Testing | System corruption reached 30% 6348 | -3/Testing | Destroyed by P-80 Master with Gamma Rifle Last Messages --------------- 06337_ Adv. Power Amplifier destroyed. 06337_ Field Propulsion Drive destroyed. 06338_ C-55 Analyst calls for reinforcements. 06338_ ALERT: Hostile activity reported, dispatching reinforcements to area. 06338_ Held in stasis. 06338_ C-55 Analyst is analyzing... 06338_ Held in stasis. 06338_ C-55 Analyst is analyzing... 06342_ Held in stasis. 06342_ C-55 Analyst is analyzing... 06343_ Com. Battery destroyed. 06344_ P-80 Master resets C-55 Analyst, system corruption cleaned. 06345_ Adv. Energy Well destroyed. 06346_ Held in stasis. 06346_ C-55 Analyst is analyzing... 06346_ Held in stasis. 06346_ C-55 Analyst is analyzing... 06346_ P-80 Master resets Striker, system corruption cleaned. 06346_ Mic. Antimatter Reactor destroyed. Map ----- +----------------------------------------------------+ | | | | | | | | | | | | | | | | | | | | | | | | | | | | | | | ???????????????????????????????? | | ???????????????????????????????? | | ????????????????????????????#### | | ????????????????????????????# "" | | ????????????????????????????# "" | | ????????????????????????????# | | ????????????????????????????# | | ????########????????????????# "" | | ????#"" """#????????????????# "" | | ????#""K"""#???????????????"# "" | | ????#""@p""####??????????? # | | ????#""cpc ## ############+##### | | ????#""Kph%Y% %% | | ????#" gp7 / %% % | | ????# h ## ;####+"##"######## | | ????#""" #####??# !#?????? | | ????##### #??????# !!$#?????? | | ????????####??????# #?????? | | ??????????????????# """ %#?????? | | ??????????????????#""""""#?????? | | ??????????????????#""""""#?????? | | ??????????????????########?????? | | ???????????????????????????????? | | ???????????????????????????????? | | ???????????????????????????????? | | ???????????????????????????????? | | ???????????????????????????????? | | ???????????????????????????????? | | ???????????????????????????????? | | ???????????????????????????????? | | ???????????????????????????????? | | ???????????????????????????????? | | ???????????????????????????????? | | ???????????????????????????????? | | ???????????????????????????????? | +----------------------------------------------------+ Best States ------------- Heat Dissipation 46 Energy Generation 33 Energy Capacity 1030 Matter Stores 300 Matter Capacity 300 Sight Range 16 Robot Scan Range 16 Terrain Scan Density 110 Jamming Range 16 Cloak Strength 3 Base Temperature (-) 100 Armor Coverage 225 Evasion (%) 64 Recoil Reduction 4 Salvage Targeting 4 Offensive Hacking 12 Defensive Hacking 10 Item Schematics ----------------- Adv. Weight Redist. System | -7/Factory | Scanalyzed Powered Hammer | -7/Factory | Scanalyzed Hvy. Rocket Launcher | -7/Factory | Scanalyzed System Shield | -7/Factory | Scanalyzed Combat Drone Bay | -6/Data Miner | Free Lgt. Regenerative Plating | -6/Data Miner | Free Enh. Flexi-carbon Leg | -6/Data Miner | Free Exp. Heat Sink | -6/Data Miner | Free Tri-rail Accelerator | -6/Data Miner | Free Impulse Thruster | -6/Data Miner | Free Adv. Hardlight Generator | -6/Data Miner | Free Adv. Datajack | -6/Data Miner | Free Nuclear Pulse Array | -6/Data Miner | Free Adv. Thermal Generator | -6/Data Miner | Free Phase Gun | -6/Data Miner | Free Adv. Remote Datajack | -6/Data Miner | Free Adv. KE Penetrator | -3/Testing | Archive Adv. Gravity Neutralizer | -3/Testing | Archive Enh. Coil Gun | -3/Testing | Archive Cld. Field Propulsion Drive | -3/Testing | Archive Exp. Myomer Leg | -3/Testing | Archive Exp. Thermal Generator | -3/Testing | Archive Tactical Quantum Warhead | -3/Testing | Archive Robot Schematics ------------------ L-41 Fighter | -6/Data Miner | Free Y-64 Sentinel | -6/Data Miner | Free D-63 Destroyer | -6/Data Miner | Free S-27 Virus | -6/Data Miner | Free H-66 Slayer | -6/Data Miner | Free G-50 Soldier | -6/Data Miner | Free A-15 Conveyor | -6/Data Miner | Free R-06 Scavenger | -3/Testing | Archive Fabricated ------------ Impulse Thruster | x2 | -4/Factory Alien Tech Used ----------------- None Achievements -------------- Knowing Is Half The Battle Rampage Challenges ------------ None Game ------ Seed FissionGyrokineticReplicator Manual? 0 Play Time 02:31:45 Cumulative 116.4 hours Start 2023.07.29 @ 23:35:24 End 2023.07.30 @ 02:17:21 Sessions 1 Manual Loads 0 Difficulty Rogue Special Mode None Game No. 86 Rogue 86 Adventurer 0 Explorer 0 Win Type - Total 0 Types 0/0/0/0/0/0/0/0/0 Lore% 28 Gallery% 44 Achievement% 37 Wizard Run 0 Options --------- ASCII 0 Keyboard 0 Movement Mouse Keybinds 0 Fullscreen 1 Font 18/SmallcapsGlow Map View 76x50 Tactical HUD 1 Map Filters NONE Filters NONE Steam 1 RUN: e098d525-1953-42be-aa55-c53c6b8717c2